Cogmind - Beta 10.2 @@@ ROGUE MODE // 2022.02.06 @ 10:32:53 Player: Kaz Result: Destroyed by G-34 Mercenary with Small Laser Performance ------------- Evolutions (1) 500 Regions Visited (2) 400 Robots Destroyed (24) 120 Value Destroyed (562) 562 Prototype IDs (1) 20 Alien Tech Used (0) 0 Bonus (0) 0 TOTAL SCORE: 1602 Bonus ------- None Cogmind --------- Core Integrity 0/400 Matter 300/300 Energy 100/100 System Corruption 0% Temperature Cool (24) Movement Core (300) Ox5 Location -9/Materials Parts ------- > --- POWER (1) -------- (None) > --- PROPULSION (2) --- (None) > --- UTILITY (4) ------ Large Storage Unit Utility Shielding > --- WEAPON (2) ------- (None) > --- INVENTORY (10) --- Ion Engine Improved Ion Engine Large Storage Unit Weapon Shielding Weapon Shielding Peak State ------------ > --- POWER ------------ Cooled Ion Engine > --- PROPULSION ------- Compact Wheel Compact Wheel > --- UTILITY ---------- Large Storage Unit High-capacity Matter Pod Utility Shielding Medium Armor Plating > --- WEAPON ----------- Assault Rifle Heavy Assault Rifle > --- INVENTORY -------- Ion Engine Improved Ion Engine Large Storage Unit Weapon Shielding Weapon Shielding Beam Rifle Maul [Rating: 14] Favorites ----------- Power Cooled Ion Engine Engine Cooled Ion Engine Power Core Light Nuclear Core Propulsion Compact Wheel Wheel Compact Wheel Utility High-capacity Matter Pod Storage High-capacity Matter Pod Protection Utility Shielding Weapon Assault Rifle Energy Gun Medium Laser Ballistic Gun Assault Rifle Impact Weapon Maul Build | -11 -10 -9 ------- Run | Scr Mat Mat Slots Evolved 2 | . . 2 Power . | . . . Propulsion . | . . . Utility 2 | . . 2 Weapon . | . . . Parts Attached 25 | 6 9 10 Power 4 | 1 2 1 Engine 3 | 1 1 1 Core 1 | . 1 . Reactor . | . . . Propulsion 6 | 2 2 2 Treads . | . . . Leg . | . . . Wheel 6 | 2 2 2 Hover . | . . . Flight . | . . . Utility 6 | 1 2 3 Device . | . . . Storage 3 | 1 2 . Processor . | . . . Hackware . | . . . Protection 3 | . . 3 Artifact . | . . . Weapon 9 | 2 3 4 Energy Gun 5 | 1 2 2 Energy Cannon . | . . . Ballistic Gun 3 | 1 1 1 Ballistic Cannon . | . . . Launcher . | . . . Special Weapon . | . . . Impact Weapon 1 | . . 1 Slashing Weapon . | . . . Piercing Weapon . | . . . Special Melee Weapon . | . . . Unidentified Prototypes 1 | . . 1 Parts Lost 17 | . 5 12 Power 2 | . 1 1 Propulsion 6 | . 2 4 Utility 2 | . . 2 Weapon 7 | . 2 5 Highest Loss Streak 9 | . 4 9 Average Slot Usage (%) 95 | . 95 95 Engine 9 | . 8 10 Core 1 | . 4 . Wheel 22 | . 25 20 Storage 24 | . 27 22 Protection 11 | . . 20 Energy Gun 5 | . 11 . Ballistic Gun 17 | . 15 19 Naked Turns . | . . . Heaviest Build 42 | 12 29 42 Greatest Support 32 | 20 32 32 Greatest Overweight (x) 9 | . 7 9 Average Overweight (x) . | . . . Largest Inventory Capacity 10 | 6 10 10 Average Capacity 9 | 5 8 10 Most Carried 10 | 3 10 7 Average Carried 5 | . 6 6 Final Capacity 10 | 6 10 10 Final Carried 7 | . 7 5 Class Distribution -------------------- 100% | Mutant Dominant Class ---------------- Mutant | -10/Materials Mutant | -9/Materials Resources | -11 -10 -9 ----------- Run | Scr Mat Mat Matter Collected 887 | 120 411 356 Remotely . | . . . Salvage Created 839 | . 385 454 Parts 49 | . 23 26 Haulers Intercepted 1 | . . 1 Recyclers Shooed 1 | . . 1 Parts Field Recycled . | . . . Retrieved Matter . | . . . Parts Self-Destructed . | . . . Prevented . | . . . Kills | -11 -10 -9 ------- Run | Scr Mat Mat Combat Hostiles Destroyed 14 | . 7 7 Guns 14 | . 7 7 Classes Destroyed 9 | . 5 4 Worker 1 | . . 1 Builder 2 | . 2 . Hauler 1 | . . 1 Recycler 1 | . 1 . Operator 1 | . . 1 Watcher 4 | . 2 2 Swarmer 2 | . 2 . Grunt 10 | . 5 5 Sentry 2 | . . 2 Best Kill Streak 5 | . 4 5 Combat Bots Only 3 | . 3 3 Max Kills in Single Turn 2 | . 1 2 Gunslinging . | . . . Exploded . | . . . Melee . | . . . Uniques/NPCs Destroyed . | . . . Combat | -11 -10 -9 -------- Run | Scr Mat Mat Damage Taken 1846 | . 502 1344 Core 463 | . 57 406 Absorbed by Shields . | . . . Core Remaining (%) 88 | 100 77 . Volleys Fired 89 | . 41 48 Largest 2 | . 2 2 Hottest 79 | . 76 79 Shots Fired 164 | . 77 87 Gun 164 | . 77 87 Cannon . | . . . Launcher . | . . . Special . | . . . Kinetic 128 | . 53 75 Thermal 36 | . 24 12 Explosive . | . . . Electromagnetic . | . . . Robot Hit Streak 15 | . 9 15 Robot Miss Streak 5 | . 4 5 Penetration Max . | . . . Secondary Targets 6 | . 5 1 Max Gunslinging Chain 1 | . 1 1 Shots Hit Robots 108 | . 49 59 Core Hits 43 | . 22 21 Critical Hits 1 | . . 1 Critical Kills . | . . . Critical Parts Destroyed 1 | . . 1 Melee Attacks 4 | . . 4 Impact 4 | . . 4 Slashing . | . . . Piercing . | . . . Sneak Attacks . | . . . Combat Hostiles . | . . . Follow-up Attacks . | . . . Damage Inflicted 1375 | . 559 816 Guns 1316 | . 559 757 Cannons . | . . . Explosions . | . . . Melee 59 | . . 59 Ramming . | . . . Kinetic 983 | . 349 634 Thermal 333 | . 210 123 Explosive . | . . . Electromagnetic . | . . . Impact 59 | . . 59 Slashing . | . . . Piercing . | . . . Highest Corruption . | . . . Average Corruption . | . . . Corruption Purged . | . . . Overload Shots . | . . . Overflow Damage . | . . . Projectiles . | . . . Explosions . | . . . Melee . | . . . Knockbacks . | . . . Impact . | . . . Kinetic . | . . . Secondary . | . . . Self-Inflicted Damage . | . . . Shots . | . . . Rammed . | . . . Targets Rammed . | . . . Kicked . | . . . Crushed . | . . . Highest Temperature 178 | . 178 114 Average Temperature 42 | . 39 52 Received Heat Transfer 669 | . 186 483 Siege Activations . | . . . Robots Corrupted . | . . . Combat Hostiles . | . . . Parts Fried . | . . . Impact Corruptions . | . . . Robots Melted . | . . . Combat Hostiles . | . . . Parts Melted 1 | . 1 . Heat Transferred 889 | . 580 309 Parts Sabotaged . | . . . Parts Stolen . | . . . Parts Stripped . | . . . Power Chain Reactions . | . . . Missiles Intercepted . | . . . Alert | -11 -10 -9 ------- Run | Scr Mat Mat Peak Influence 271 | . 186 271 Initial . | . . . Average 98 | . 62 133 Maximum Alert Level 1 | . . 1 Low Security (%) 83 | 100 100 69 Level 1 16 | . . 30 Level 2 . | . . . Level 3 . | . . . Level 4 . | . . . Level 5 . | . . . High Security . | . . . Max Security . | . . . Squads Dispatched 4 | . 2 2 Investigation 2 | . 1 1 Extermination . | . . . Reinforcement 2 | . 1 1 Assault . | . . . Garrison . | . . . Intercept . | . . . Construction Impeded . | . . . Haulers Reinforced . | . . . Stealth | -11 -10 -9 --------- Run | Scr Mat Mat Distress Signals 1 | . . 1 Communications Jammed . | . . . Distress Signals . | . . . Times Spotted 36 | . 13 23 Peak Tracking Total 8 | . 6 8 Tactical Retreats 2 | . 1 1 Traps | -11 -10 -9 ------- Run | Scr Mat Mat Traps Triggered 2 | . 1 1 Indirectly . | . . . Trap Hack Attempts . | . . . Triggered . | . . . Disarmed . | . . . Reprogrammed . | . . . Reused . | . . . Traps Extracted . | . . . Installed . | . . . Triggered . | . . . Machines | -11 -10 -9 ---------- Run | Scr Mat Mat Machines Disabled . | . . . Max in Single Turn . | . . . Machines Sabotaged . | . . . Garrisons Compromised . | . . . Overloaded Fab Kills . | . . . Fab Network Shutdowns . | . . . Hacking | -11 -10 -9 --------- Run | Scr Mat Mat Machines Accessed 5 | . 1 4 Terminals 4 | . 1 3 Fabricators . | . . . Repair Stations . | . . . Recycling Units . | . . . Scanalyzers 1 | . . 1 Garrison Access . | . . . Total Hacks 12 | . 4 8 Successful 9 | . 3 6 Failed 3 | . 1 2 Catastrophic 1 | . . 1 Database Lockouts . | . . . Manual . | . . . Terminals 10 | . 4 6 Fabricators . | . . . Repair Stations . | . . . Recycling Units . | . . . Scanalyzers 2 | . . 2 Garrison Access . | . . . Terminal Hacks 7 | . 3 4 Record 2 | . 2 . Reinforcement Status 1 | . . 1 Hauler Manifests 3 | . 1 2 Registered Components 1 | . . 1 Fabricator Hacks . | . . . Repair Station Hacks . | . . . Recycling Unit Hacks . | . . . Scanalyzer 2 | . . 2 Insert Component 1 | . . 1 Analyze 1 | . . 1 Garrison Access Hacks . | . . . Unauthorized Hacks . | . . . Terminals . | . . . Fabricators . | . . . Repair Stations . | . . . Recycling Units . | . . . Scanalyzers . | . . . Garrison Access . | . . . Data Cores Recovered . | . . . Used . | . . . Hacking Detections 5 | . 1 4 Full Trace Events 3 | . 1 2 Feedback Events . | . . . Feedback Blocked . | . . . Robot Schematics Acquired . | . . . Robots Built . | . . . Matter . | . . . Time . | . . . Total Robot Build Rating . | . . . Part Schematics Acquired 1 | . . 1 Parts Built . | . . . Matter . | . . . Time . | . . . Total Part Build Rating . | . . . Parts Repaired . | . . . Time . | . . . Parts Recycled . | . . . Recycled Matter . | . . . Retrieved Matter . | . . . Retrieved Components . | . . . Parts Scanalyzed 1 | . . 1 Part Schematics Acquired 1 | . . 1 Parts Damaged . | . . . Bothacking | -11 -10 -9 ------------ Run | Scr Mat Mat Used RIF Installer . | . . . Robots Hacked . | . . . Non-combat . | . . . Combat . | . . . Robot Hacks Applied . | . . . Relay Couplers Released . | . . . Robots Rewired . | . . . Allies Hacked . | . . . Hacks Repelled . | . . . Allies | -11 -10 -9 -------- Run | Scr Mat Mat Total Allies . | . . . Largest Group . | . . . Highest-Rated Group . | . . . Highest-Rated Ally . | . . . Total Orders . | . . . Ally Attacks . | . . . Total Damage . | . . . Kills . | . . . Allies Corrupted . | . . . Allies Melted . | . . . Intel | -11 -10 -9 ------- Run | Scr Mat Mat Robot Analysis Total . | . . . Derelict Logs Recovered . | . . . Drone Launches . | . . . Drone Recoveries . | . . . Exploration | -11 -10 -9 ------------- Run | Scr Mat Mat Turns Passed 967 | 39 401 527 Spaces Moved 640 | 37 288 315 Core 14 | 7 2 5 Treads . | . . . Legs . | . . . Wheels 626 | 30 286 310 Hover . | . . . Flight . | . . . Fastest Speed 50 | 50 80 100 Average Speed 100 | 74 88 113 Slowest Speed 500 | 80 400 500 Overloaded Moves . | . . . Propulsion Burnouts . | . . . Robots Hopped . | . . . Cave-ins Triggered . | . . . Exploration Rate (%) 31 | 4 57 33 Regions Visited 2 Branch Regions . Pre-discovered Areas . | . . . Known Exits Taken . | . . . Unknown Exits Taken 2 | 1 1 . Scrap Searched . | . . . Spaces Dug . | . . . Terrain Destroyed . | . . . Melee . | . . . Projectile . | . . . AOE . | . . . Terrain Rammed . | . . . Walls Destroyed . | . . . Machines Disabled . | . . . Actions | -11 -10 -9 --------- Run | Scr Mat Mat Total 801 | 48 363 390 Wait 16 | . 9 7 Move 638 | 36 287 315 Hop . | . . . Pick Up 27 | 6 15 6 Fast Attach . | . . . Attach 20 | 6 6 8 Detach . | . . . Swap 5 | . 3 2 Drop 2 | . 2 . Fire 89 | . 41 48 Melee 4 | . . 4 Ram . | . . . Kick . | . . . Crush . | . . . Escape Stasis . | . . . Rewire . | . . . Trap . | . . . Miscellaneous . | . . . Route ------- -11/Scrapyard -10/Materials (discovered 2 exits: *Mat / [*Min]) -9/Materials (discovered 1 exit: [*Min]) History --------- Turn | Location | Event 24 | -11/Scrapyard | Discovered new exit (range 15) 40 | -11/Scrapyard | Entered Materials 273 | -10/Materials | Discovered new exit (range 6) 302 | -10/Materials | Build established: Mutant 337 | -10/Materials | Discovered new exit (range 8) 438 | -10/Materials | Lost 4 parts (1p2n1w) 441 | -10/Materials | Entered another Materials area 441 | -9/Materials | Evolved 2 slots: Utility x2 515 | -9/Materials | Discovered new exit (range 5) 944 | -9/Materials | Core integrity fell below 50% 966 | -9/Materials | Core integrity fell below 20% 968 | -9/Materials | Destroyed by G-34 Mercenary with Small Laser Last Messages --------------- 00918_ U-05 Engineer lays Concrete. 00920_ Hvy. Assault Rifle destroyed. 00920_ U-05 Engineer lays Concrete. 00922_ Com. Wheel destroyed. 00922_ U-05 Engineer lays Concrete. 00926_ Med. Armor Plating destroyed. 00926_ U-05 Engineer lays Concrete. 00927_ U-05 Engineer builds a Wall. 00927_ U-05 Engineer lays Concrete. 00936_ G-34 Mercenary destroyed. 00937_ Beam Rifle destroyed. 00943_ R-06 Scavenger collects Aluminum Leg. 00947_ R-06 Scavenger collects Ion Engine. 00948_ Com. Wheel destroyed. 00950_ Maul destroyed. 00950_ Acquired 4 matter. 00951_ R-06 Scavenger collects Heat Sink. 00955_ W-16 Scout sends out distress signal. 00958_ Cld. Ion Engine destroyed. 00960_ Hcp. Matter Pod destroyed. Map ----- +----------------------------------------------------+ | | | | | | | | | | | | | | | | | | | ????????????????????????###??????????????????????? | | ???????????????????????##!!#?????????????????????? | | ???????????????????????#! #?????????????????????? | | ???????????????????????#! ##################????? | | ???????????????????????#! #????? | | ???????????????????????#! ############# #????? | | ???????????????????????##!!#???????????# ###### | | ????????????????????????####??????###### | | ??????????????????????????????????# # ######### | | ??????????????????????????????????# # #??####?? | | ??????????????????????????????????# # #??# ? | | ????????????????????????????####### # #??# """? | | ??????????????????????????? # ! # #### """ | | ???????????????????#######? # ! + # """ | | ????????? ####### # # #### # """ | | ????????? g # # #??# # """ | | ???????? [ Y @ # #??# # | | ????????? g # ##+###### ###### | | ?????????????###+###lw # ## # ## #???# | | ???????????????????## Yg##? ## # #???# | | ????????????????????# % #?? ## # ## #???# | | ????????????????????# #???######## #?# #???# | | ????????????????????# ###????????# #?# #???# | | ????????????????????#r # ########## #?#+##### | | ????????????????????#^ #?# T ### | | ????????????????????# #?# #! | | ????????????????????# ### !] # | | ????????????????????# # !] # | | ????????????????????# + !] # | | ????????????????????# """ # # | | ????????????????????# """ ####### # | | ????????????????????# """ #### #?????#! # | | ????????????????????# #??# #?????# = # | | ????????????????????# ^ ####+#####?# ###### | | ????????????????????# # #?###???# | | ??????????????????### [[ # """" #???????# | | ????????????????? [! # ""S"" #???????# | | ????????????????? # "" "" #???????# | | ????????????????? + #???????# | | ????????????????????????# # """ #???????# | | ????????????????????????#+## # """ #???????# | +----------------------------------------------------+ Best States ------------- Heat Dissipation 28 Energy Generation 14 Energy Capacity 280 Matter Stores 500 Matter Capacity 500 Sight Range 16 Terrain Scan Density 10 Armor Coverage 225 Utility Shielding 33 Weapon Shielding 33 Evasion (%) 44 Item Schematics ----------------- Ion Engine | -9/Materials | Scanalyzed Robot Schematics ------------------ None Fabricated ------------ Nothing Alien Tech Used ----------------- None Achievements -------------- None Challenges ------------ None Game ------ Seed BattleSalvageReplicator Manual? 0 Play Time 00:14:42 Cumulative 29.2 hours Start 2022.02.06 @ 10:15:34 End 2022.02.06 @ 10:32:53 Sessions 1 Manual Loads 0 Difficulty Rogue Special Mode None Game No. 39 Rogue 36 Adventurer 3 Explorer 0 Win Type - Total 0 Types 0/0/0/0/0/0/0/0/0 Lore% 6 Gallery% 19 Achievement% 13 Wizard Run 0 Options --------- ASCII 0 Keyboard 0 Movement Mouse Keybinds 0 Fullscreen 1 Font 24/Proggy Map View 113x50 Tactical HUD 1 Map Filters NONE Filters NONE Steam 1 RUN: 13e93416-f2ce-4ea7-ab98-926a8856050e